fUSD/lending_fUSD_20250708
["ID","MTS","AMOUNT","RATE_DAILY","PERIOD"]
[370302730,1751943042734,-493.27232038,0.00030136,7]
[370302732,1751943042743,-490.0,0.00030136,7]
[370302734,1751943042753,-460.0,0.00030136,7]
[370302736,1751943042762,-365.06819628,0.00030136,7]
[370302738,1751943042771,-545.22,0.00030136,7]
[370302740,1751943042783,-460.0,0.00030136,7]
[370302742,1751943042792,-491.42895043,0.00030136,7]
[370302744,1751943042802,-491.37515113,0.00030136,7]
[370302746,1751943042811,-460.0,0.00030136,7]
[370302748,1751943042821,-460.0,0.00030136,7]
[370302750,1751943042831,-460.0,0.00030136,7]
[370302752,1751943042840,-490.0,0.00030136,7]
[370302754,1751943042850,-460.0,0.00030136,7]
[370302756,1751943042859,-167.01301,0.00030136,7]
[370302758,1751943042869,-460.0,0.00030136,7]
[370302760,1751943042879,-460.0,0.00030136,7]
[370302762,1751943042888,-492.76633399,0.00030136,7]
[370302764,1751943042898,-460.0,0.00030136,7]
[370302766,1751943042908,-676.91,0.00030136,7]
[370302768,1751943042918,-460.0,0.00030136,7]
[370302770,1751943042927,-460.0,0.00030136,7]
[370302772,1751943042936,-460.0,0.00030136,7]
[370302774,1751943042945,-491.6528755,0.00030136,7]
[370302776,1751943042955,-831.93,0.00030136,7]
[370302778,1751943042964,-582.82217478,0.00030136,7]
[370302780,1751943042974,-655.21,0.00030136,7]
[370302782,1751943042984,-598.49,0.00030136,7]
[370302784,1751943042993,-492.38986057,0.00030136,7]
[370302786,1751943043002,-492.32665989,0.00030136,7]
[370302789,1751943043015,-460.0,0.00030136,7]
[370302791,1751943043025,-490.0,0.00030136,7]
[370302793,1751943043034,-500.0,0.00030136,7]
[370302795,1751943043044,-579.92,0.00030136,7]
[370302797,1751943043054,-594.61347758,0.00030136,7]
[370302799,1751943043063,-492.55613368,0.00030136,7]
[370302801,1751943043073,-460.0,0.00030136,7]
[370302803,1751943043083,-460.0,0.00030136,7]
[370302805,1751943043093,-500.0,0.00030136,7]
[370302807,1751943043102,-500.0,0.00030136,7]
[370302809,1751943043111,-500.0,0.00030136,7]
[370302811,1751943043120,-500.0,0.00030136,7]
[370302812,1751943043130,-512.92,0.00030136,7]
[370302815,1751943043141,-460.0,0.00030136,7]
[370302817,1751943043151,-460.0,0.00030136,7]
[370302819,1751943043161,-491.29991904,0.00030136,7]
[370302821,1751943043170,-460.0,0.00030136,7]
[370302823,1751943043180,-490.0,0.00030136,7]
[370302824,1751943043189,-460.0,0.00030136,7]
[370302827,1751943043199,-460.0,0.00030136,7]
[370302829,1751943043208,-546.35,0.00030136,7]
[370302830,1751943043217,-460.0,0.00030136,7]
[370302832,1751943043226,-491.92241864,0.00030136,7]
[370302834,1751943043235,-460.0,0.00030136,7]
[370302836,1751943043245,-460.0,0.00030136,7]
[370302838,1751943043255,-561.80109063,0.00030136,7]
[370302841,1751943043264,-475.87,0.00030136,7]
[370302843,1751943043274,-492.16479239,0.00030136,7]
[370302845,1751943043283,-460.0,0.00030136,7]
[370302847,1751943043293,-460.0,0.00030136,7]
[370302849,1751943043302,-602.41,0.00030136,7]
[370302850,1751943043311,-490.0,0.00030136,7]
[370302852,1751943043321,-460.0,0.00030136,7]
[370302854,1751943043330,-490.0,0.00030136,7]
[370302856,1751943043339,-490.0,0.00030136,7]
[370302858,1751943043348,-460.0,0.00030136,7]
[370302860,1751943043358,-460.0,0.00030136,7]
[370302862,1751943043367,-491.98035922,0.00030136,7]
[370302865,1751943043377,-460.0,0.00030136,7]
[370302867,1751943043386,-460.0,0.00030136,7]
[370302869,1751943043395,-460.0,0.00030136,7]
[370302870,1751943043405,-460.0,0.00030136,7]
[370302872,1751943043414,-156.14325982,0.00030136,7]
[370302874,1751943043423,-492.64516116,0.00030136,7]
[370302876,1751943043433,-565.81,0.00030136,7]
[370302878,1751943043442,-460.0,0.00030136,7]
[370302880,1751943043451,-460.0,0.00030136,7]
[370302882,1751943043461,-491.55098224,0.00030136,7]
[370302884,1751943043470,-460.0,0.00030136,7]
[370302886,1751943043480,-460.0,0.00030136,7]
[370302888,1751943043489,-490.0,0.00030136,7]
[370302890,1751943043498,-490.0,0.00030136,7]
[370302892,1751943043509,-568.61497098,0.00030136,7]
[370302894,1751943043518,-460.0,0.00030136,7]
[370302896,1751943043527,-460.0,0.00030136,7]
[370302898,1751943043537,-460.0,0.00030136,7]
[370302900,1751943043546,-460.0,0.00030136,7]
[370302902,1751943043555,-460.0,0.00030136,7]
[370302904,1751943043564,-490.0,0.00030136,7]
[370302905,1751943043573,-490.0,0.00030136,7]
[370302906,1751943043583,-460.0,0.00030136,7]
[370302907,1751943043592,-970.26,0.00030136,7]
[370302908,1751943043601,-490.0,0.00030136,7]
[370302909,1751943043610,-536.77,0.00030136,7]
[370302910,1751943043619,-460.0,0.00030136,7]
[370302911,1751943043628,-490.08985697,0.00030136,7]
[370302912,1751943043637,-490.0,0.00030136,7]
[370302913,1751943043646,-1317.67,0.00030136,7]
[370302914,1751943043657,-460.0,0.00030136,7]
[370302915,1751943043665,-491.92249572,0.00030136,7]
[370302917,1751943043675,-460.0,0.00030136,7]
[370302918,1751943043684,-491.67785487,0.00030136,7]
[370302919,1751943043694,-169.0265883,0.00030136,7]
[370302920,1751943043703,-647.3,0.00030136,7]
[370302921,1751943043713,-460.0,0.00030136,7]
[370302922,1751943043722,-460.0,0.00030136,7]
[370302923,1751943043732,-493.31411021,0.00030136,7]
[370302924,1751943043741,-600.59,0.00030136,7]
[370302927,1751943043750,-552.05217511,0.00030136,7]
[370302928,1751943043759,-490.0,0.00030136,7]
[370302929,1751943043769,-490.0,0.00030136,7]
[370302931,1751943043782,-490.0,0.00030136,7]
[370302933,1751943043792,-490.0,0.00030136,7]
[370302935,1751943043801,-495.45817634,0.00030136,7]
[370302936,1751943043810,-460.0,0.00030136,7]
[370302937,1751943043819,-460.0,0.00030136,7]
[370302938,1751943043829,-460.0,0.00030136,7]
[370302939,1751943043839,-491.97629002,0.00030136,7]
[370302940,1751943043849,-519.44,0.00030136,7]
[370302941,1751943043858,-463.23019807,0.00030136,7]
[370302942,1751943043867,-499.80081206,0.00030136,7]
[370302943,1751943043877,-492.10750146,0.00030136,7]
[370302944,1751943043886,-490.0,0.00030136,7]
[370302945,1751943043896,-522.57,0.00030136,7]
[370302946,1751943043906,-490.0,0.00030136,7]
[370302947,1751943043916,-670.97,0.00030136,7]
[370302948,1751943043926,-460.0,0.00030136,7]
[370302949,1751943043936,-460.0,0.00030136,7]
[370302950,1751943043946,-490.0,0.00030136,7]
[370302951,1751943043956,-460.0,0.00030136,7]
[370302952,1751943043966,-473.4095194,0.00030136,7]
[370302953,1751943043975,-554.22,0.00030136,7]
[370302954,1751943043985,-460.0,0.00030136,7]
[370302955,1751943043994,-492.58812847,0.00030136,7]
[370302956,1751943044004,-460.0,0.00030136,7]
[370302957,1751943044013,-460.0,0.00030136,7]
[370302958,1751943044023,-482.48048494,0.00030136,7]
[370302959,1751943044032,-460.0,0.00030136,7]
[370302960,1751943044041,-460.0,0.00030136,7]
[370302961,1751943044051,-500.0,0.00030136,7]
[370302962,1751943044060,-460.0,0.00030136,7]
[370302963,1751943044070,-491.6655848,0.00030136,7]
[370302964,1751943044079,-460.0,0.00030136,7]
[370302965,1751943044090,-460.0,0.00030136,7]
[370302966,1751943044099,-490.0,0.00030136,7]
[370302967,1751943044109,-490.0,0.00030136,7]
[370302968,1751943044119,-460.0,0.00030136,7]
[370302969,1751943044130,-490.0,0.00030136,7]
[370302970,1751943044140,-460.0,0.00030136,7]
[370302971,1751943044151,-460.0,0.00030136,7]
[370302972,1751943044160,-490.0,0.00030136,7]
[370302973,1751943044169,-460.0,0.00030136,7]
[370302974,1751943044179,-471.25214886,0.00030136,7]
[370302975,1751943044190,-460.0,0.00030136,7]
[370302976,1751943044199,-563.23,0.00030136,7]
[370302977,1751943044219,-490.0,0.00030136,7]
[370302978,1751943044240,-460.0,0.00030136,7]
[370302979,1751943044261,-460.0,0.00030136,7]
[370302980,1751943044284,-491.03718329,0.00030136,7]
[370302981,1751943044306,-460.0,0.00030136,7]
[370302982,1751943044327,-492.29025575,0.00030136,7]
[370302983,1751943044348,-512.74900123,0.00030136,7]
[370302984,1751943044370,-460.0,0.00030136,7]
[370302985,1751943044391,-463.73549311,0.00030136,7]
[370302986,1751943044412,-490.0,0.00030136,7]
[370302987,1751943044434,-460.0,0.00030136,7]
[370302988,1751943044460,-460.0,0.00030136,7]
[370302989,1751943044481,-490.94693908,0.00030136,7]
[370302990,1751943044503,-516.65,0.00030136,7]
[370302991,1751943044525,-492.02649519,0.00030136,7]
[370302992,1751943044539,-460.0,0.00030136,7]
[370302993,1751943044549,-460.0,0.00030136,7]
[370302994,1751943044558,-491.53033783,0.00030136,7]
[370302995,1751943044567,-460.0,0.00030136,7]
[370302996,1751943044576,-460.0,0.00030136,7]
[370302997,1751943044586,-501.18,0.00030136,7]
[370302998,1751943044595,-204.08,0.00030136,7]
[370302999,1751943044605,-493.54730522,0.00030136,7]
[370303000,1751943044614,-460.0,0.00030136,7]
[370303001,1751943044623,-460.0,0.00030136,7]
[370303002,1751943044632,-460.0,0.00030136,7]
[370303003,1751943044642,-460.0,0.00030136,7]
[370303004,1751943044652,-460.0,0.00030136,7]
[370303005,1751943044661,-460.0,0.00030136,7]
[370303006,1751943044671,-460.0,0.00030136,7]
[370303007,1751943044680,-460.0,0.00030136,7]
[370303008,1751943044689,-460.0,0.00030136,7]
[370303009,1751943044699,-460.0,0.00030136,7]
[370303010,1751943044708,-460.0,0.00030136,7]
[370303011,1751943044717,-460.0,0.00030136,7]
[370303012,1751943044727,-534.47,0.00030136,7]
[370303013,1751943044736,-493.90737796,0.00030136,7]
[370303014,1751943044745,-460.0,0.00030136,7]
[370303015,1751943044754,-460.0,0.00030136,7]
[370303016,1751943044763,-460.0,0.00030136,7]
[370303017,1751943044772,-500.0,0.00030136,7]
[370303018,1751943044783,-500.0,0.00030136,7]
[370303019,1751943044792,-544.02,0.00030136,7]
[370303020,1751943044801,-601.9,0.00030136,7]
[370303021,1751943044810,-490.0,0.00030136,7]
[370303022,1751943044819,-460.0,0.00030136,7]
[370303023,1751943044829,-460.0,0.00030136,7]
[370303024,1751943044838,-460.0,0.00030136,7]
[370303025,1751943044847,-460.0,0.00030136,7]
[370303026,1751943044857,-460.0,0.00030136,7]
[370303027,1751943044866,-500.0,0.00030136,7]
[370303028,1751943044875,-460.0,0.00030136,7]
[370303029,1751943044885,-460.0,0.00030136,7]
[370303030,1751943044895,-490.0,0.00030136,7]
[370303031,1751943044904,-490.0,0.00030136,7]
[370303032,1751943044913,-460.0,0.00030136,7]
[370303033,1751943044923,-525.71,0.00030136,7]
[370303034,1751943044932,-460.0,0.00030136,7]
[370303035,1751943044941,-460.0,0.00030136,7]
[370303036,1751943044950,-460.0,0.00030136,7]
[370303037,1751943044959,-460.0,0.00030136,7]
[370303038,1751943044968,-494.84785832,0.00030136,7]
[370303039,1751943044977,-491.58518175,0.00030136,7]
[370303040,1751943044987,-490.0,0.00030136,7]
[370303041,1751943044996,-487.82554293,0.00030136,7]
[370303042,1751943045006,-460.0,0.00030136,7]
[370303043,1751943045015,-460.0,0.00030136,7]
[370303044,1751943045025,-491.31912153,0.00030136,7]
[370303045,1751943045034,-460.0,0.00030136,7]
[370303046,1751943045044,-460.0,0.00030136,7]
[370303047,1751943045053,-493.87263436,0.00030136,7]
[370303048,1751943045063,-524.46230305,0.00030136,7]
[370303049,1751943045073,-460.0,0.00030136,7]
[370303050,1751943045083,-460.0,0.00030136,7]
[370303051,1751943045092,-460.0,0.00030136,7]
[370303052,1751943045101,-490.0,0.00030136,7]
[370303053,1751943045111,-490.1,0.00030136,7]
[370303054,1751943045120,-460.0,0.00030136,7]
[370303055,1751943045130,-460.0,0.00030136,7]
[370303056,1751943045139,-460.0,0.00030136,7]
[370303057,1751943045149,-460.0,0.00030136,7]
[370303058,1751943045159,-460.0,0.00030136,7]
[370303059,1751943045169,-520.0,0.00030136,7]
[370303060,1751943045178,-490.0,0.00030136,7]
[370303061,1751943045187,-492.64610468,0.00030136,7]
[370303062,1751943045197,-460.0,0.00030136,7]
[370303063,1751943045206,-460.0,0.00030136,7]
[370303064,1751943045216,-460.0,0.00030136,7]
[370303065,1751943045228,-495.70719874,0.00030136,7]
[370303066,1751943045237,-490.0,0.00030136,7]
[370303067,1751943045246,-658.13,0.00030136,7]
[370303068,1751943045256,-460.0,0.00030136,7]
[370303069,1751943045266,-655.99,0.00030136,7]
[370303070,1751943045276,-460.0,0.00030136,7]
[370303071,1751943045285,-460.0,0.00030136,7]
[370303072,1751943045296,-460.0,0.00030136,7]
[370303073,1751943045307,-492.99408768,0.00030136,7]
[370303074,1751943045317,-490.0,0.00030136,7]
[370303075,1751943045326,-460.0,0.00030136,7]
[370303076,1751943045338,-460.0,0.00030136,7]
[370303077,1751943045349,-340.86496349,0.00030136,7]
[370303078,1751943045359,-460.0,0.00030136,7]
[370303079,1751943045368,-460.0,0.00030136,7]
[370303080,1751943045378,-490.0,0.00030136,7]
[370303081,1751943045387,-460.0,0.00030136,7]
[370303082,1751943045397,-460.0,0.00030136,7]
[370303083,1751943045407,-460.0,0.00030136,7]
[370303084,1751943045416,-460.0,0.00030136,7]
[370303085,1751943045426,-490.0,0.00030136,7]
[370303086,1751943045435,-460.0,0.00030136,7]
[370303087,1751943045445,-596.75,0.00030136,7]
[370303088,1751943045454,-460.0,0.00030136,7]
[370303089,1751943045464,-460.0,0.00030136,7]
[370303090,1751943045474,-460.0,0.00030136,7]
[370303091,1751943045483,-495.08487223,0.00030136,7]
[370303092,1751943045492,-490.0,0.00030136,7]
[370303093,1751943045502,-460.0,0.00030136,7]
[370303094,1751943045512,-460.0,0.00030136,7]
[370303095,1751943045522,-460.0,0.00030136,7]
[370303096,1751943045533,-460.0,0.00030136,7]
[370303097,1751943045543,-460.0,0.00030136,7]
[370303098,1751943045553,-460.0,0.00030136,7]
[370303099,1751943045563,-460.0,0.00030136,7]
[370303100,1751943045574,-490.86809508,0.00030136,7]
[370303101,1751943045583,-460.0,0.00030136,7]
[370303102,1751943045593,-460.0,0.00030136,7]
[370303103,1751943045603,-523.15,0.00030136,7]
[370303104,1751943045612,-460.0,0.00030136,7]
[370303105,1751943045622,-493.33169883,0.00030136,7]
[370303106,1751943045632,-460.0,0.00030136,7]
[370303107,1751943045641,-490.0,0.00030136,7]
[370303108,1751943045651,-460.0,0.00030136,7]
[370303109,1751943045662,-490.0,0.00030136,7]
[370303110,1751943045859,-167.277439,0.00030136,7]
[370303111,1751943045870,-460.0,0.00030136,7]
[370303112,1751943045879,-158.359476,0.00030136,7]
[370303113,1751943045888,-371.92055,0.00030136,7]
[370303114,1751943045898,-490.0,0.00030136,7]
[370303115,1751943045907,-460.0,0.00030136,7]
[370303116,1751943045916,-460.0,0.00030136,7]
[370303117,1751943045926,-158.998156,0.00030136,7]
[370303118,1751943045935,-460.0,0.00030136,7]
[370303119,1751943045946,-214.05402557,0.00030136,7]
[370303120,1751943045956,-460.0,0.00030136,7]
[370303122,1751943045965,-723.64,0.00030136,7]
[370303124,1751943045975,-490.0,0.00030136,7]
[370303126,1751943045984,-492.78802084,0.00030136,7]
[370303128,1751943045994,-460.0,0.00030136,7]
[370303130,1751943046003,-347.380546,0.00030136,7]
[370303132,1751943046013,-484.26651101,0.00030136,7]
[370303134,1751943046022,-460.0,0.00030136,7]
[370303136,1751943046032,-460.0,0.00030136,7]
[370303138,1751943046041,-615.86,0.00030136,7]
[370303140,1751943046051,-460.0,0.00030136,7]
[370303141,1751943046061,-239.52,0.00030136,7]
[370303143,1751943046071,-460.0,0.00030136,7]
[370303144,1751943046080,-490.0,0.00030136,7]
[370303145,1751943046091,-460.0,0.00030136,7]
[370303146,1751943046106,-456.150448,0.00030136,7]
[370303147,1751943046117,-460.0,0.00030136,7]
[370303148,1751943046127,-460.0,0.00030136,7]
[370303149,1751943046136,-495.5694258,0.00030136,7]
[370303150,1751943046145,-460.0,0.00030136,7]
[370303151,1751943046155,-496.4144619,0.00030136,7]
[370303152,1751943046164,-527.50325202,0.00030136,7]
[370303153,1751943046175,-460.0,0.00030136,7]
[370303154,1751943046185,-490.0,0.00030136,7]
[370303155,1751943046195,-460.0,0.00030136,7]
[370303156,1751943046205,-493.35742324,0.00030136,7]
[370303157,1751943046214,-460.0,0.00030136,7]
[370303158,1751943046225,-460.0,0.00030136,7]
[370303159,1751943046234,-495.32450264,0.00030136,7]
[370303160,1751943046244,-460.0,0.00030136,7]
[370303161,1751943046254,-460.0,0.00030136,7]
[370303162,1751943046263,-460.0,0.00030136,7]
[370303163,1751943046274,-490.0,0.00030136,7]
[370303164,1751943046284,-460.0,0.00030136,7]
[370303165,1751943046294,-483.7,0.00030136,7]
[370303166,1751943046303,-460.0,0.00030136,7]
[370303167,1751943046313,-460.0,0.00030136,7]
[370303168,1751943046323,-460.0,0.00030136,7]
[370303169,1751943046332,-492.10365715,0.00030136,7]
[370303170,1751943046343,-419.30107765,0.00030136,7]
[370303171,1751943046352,-873.15,0.00030136,7]
[370303172,1751943046362,-460.0,0.00030136,7]
[370303173,1751943046371,-490.0,0.00030136,7]
[370303174,1751943046381,-490.0,0.00030136,7]
[370303175,1751943046391,-564.5,0.00030136,7]
[370303176,1751943046401,-491.9209865,0.00030136,7]
[370303177,1751943046411,-490.0,0.00030136,7]
[370303178,1751943046420,-460.0,0.00030136,7]
[370303179,1751943046430,-493.6905507,0.00030136,7]
[370303180,1751943046440,-460.0,0.00030136,7]
[370303181,1751943046449,-490.0,0.00030136,7]
[370303182,1751943046459,-460.0,0.00030136,7]
[370303183,1751943046469,-460.0,0.00030136,7]
[370303184,1751943046478,-460.0,0.00030136,7]
[370303185,1751943046488,-490.0,0.00030136,7]
[370303186,1751943046498,-953.93,0.00030136,7]
[370303187,1751943046508,-460.0,0.00030136,7]
[370303188,1751943046518,-460.0,0.00030136,7]
[370303189,1751943046527,-486.21,0.00030136,7]
[370303190,1751943046536,-460.0,0.00030136,7]
[370303191,1751943046546,-460.0,0.00030136,7]
[370303192,1751943046556,-245.64830789,0.00030136,7]
[370303193,1751943046565,-460.0,0.00030136,7]
[370303194,1751943046575,-460.0,0.00030136,7]
[370303195,1751943046584,-460.0,0.00030136,7]
[370303196,1751943046594,-2128.13,0.00030136,7]
[370303197,1751943046604,-562.60184376,0.00030136,7]
[370303198,1751943046613,-460.0,0.00030136,7]
[370303199,1751943046623,-460.0,0.00030136,7]
[370303200,1751943046632,-460.0,0.00030136,7]
[370303201,1751943046642,-460.0,0.00030136,7]
[370303202,1751943046652,-460.0,0.00030136,7]
[370303203,1751943046661,-491.78537087,0.00030136,7]
[370303204,1751943046671,-460.0,0.00030136,7]
[370303205,1751943046680,-460.0,0.00030136,7]
[370303206,1751943046690,-493.29002738,0.00030136,7]
[370303207,1751943046699,-460.0,0.00030136,7]
[370303208,1751943046709,-460.0,0.00030136,7]
[370303209,1751943046718,-460.0,0.00030136,7]
[370303210,1751943046727,-490.0,0.00030136,7]
[370303211,1751943046737,-848.59,0.00030136,7]
[370303212,1751943046747,-290.0,0.00030136,7]
[370303213,1751943046756,-460.0,0.00030136,7]
[370303214,1751943046765,-460.0,0.00030136,7]
[370303215,1751943046775,-582.07,0.00030136,7]
[370303216,1751943046788,-493.59332986,0.00030136,7]
[370303217,1751943046797,-490.0,0.00030136,7]
[370303218,1751943046806,-460.0,0.00030136,7]
[370303219,1751943046816,-460.0,0.00030136,7]
[370303220,1751943046825,-460.0,0.00030136,7]
[370303221,1751943046835,-460.0,0.00030136,7]
[370303222,1751943046844,-460.0,0.00030136,7]
[370303223,1751943046853,-460.0,0.00030136,7]
[370303224,1751943046863,-460.0,0.00030136,7]
[370303225,1751943046872,-460.0,0.00030136,7]
[370303226,1751943046882,-460.0,0.00030136,7]
[370303227,1751943046891,-493.21187181,0.00030136,7]
[370303228,1751943046900,-460.0,0.00030136,7]
[370303229,1751943046910,-460.0,0.00030136,7]
[370303230,1751943046919,-490.0,0.00030136,7]
[370303231,1751943046928,-460.0,0.00030136,7]
[370303232,1751943046937,-562.05,0.00030136,7]
[370303233,1751943046947,-460.0,0.00030136,7]
[370303234,1751943046957,-490.0,0.00030136,7]
[370303235,1751943046966,-460.0,0.00030136,7]
[370303236,1751943046975,-460.0,0.00030136,7]
[370303237,1751943046985,-460.0,0.00030136,7]
[370303238,1751943046996,-204.22722524,0.00030136,7]
[370303239,1751943047005,-403.28453357,0.00030136,7]
[370303240,1751943047053,-56.71546643,0.00030136,7]
[370303241,1751943047063,-493.71705735,0.00030136,7]
[370303242,1751943047073,-460.0,0.00030136,7]
[370303243,1751943047082,-541.53,0.00030136,7]
[370303244,1751943047093,-460.0,0.00030136,7]
[370303245,1751943047104,-1754.58,0.00030136,7]
[370303246,1751943047114,-493.55660938,0.00030136,7]
[370303247,1751943047124,-490.0,0.00030136,7]
[370303248,1751943047133,-460.0,0.00030136,7]
[370303249,1751943047143,-498.93542466,0.00030136,7]
[370303250,1751943047153,-460.0,0.00030136,7]
[370303251,1751943047163,-460.0,0.00030136,7]
[370303252,1751943047173,-460.0,0.00030136,7]
[370303253,1751943047183,-460.0,0.00030136,7]
[370303254,1751943047193,-460.0,0.00030136,7]
[370303255,1751943047202,-490.0,0.00030136,7]
[370303256,1751943047213,-460.0,0.00030136,7]
[370303257,1751943047223,-490.0,0.00030136,7]
[370303258,1751943047233,-460.0,0.00030136,7]
[370303259,1751943047243,-953.07,0.00030136,7]
[370303260,1751943047253,-493.73038073,0.00030136,7]
[370303261,1751943047263,-493.79253881,0.00030136,7]
[370303262,1751943047273,-460.0,0.00030136,7]
[370303263,1751943047283,-1190.48,0.00030136,7]
[370303264,1751943047292,-464.89903588,0.00030136,7]
[370303265,1751943047302,-490.0,0.00030136,7]
[370303266,1751943047312,-460.0,0.00030136,7]
[370303267,1751943047322,-460.0,0.00030136,7]
[370303268,1751943047331,-490.0,0.00030136,7]
[370303269,1751943047341,-1456.13,0.00030136,7]
[370303270,1751943047350,-412.23498348,0.00030136,7]
[370303271,1751943047360,-224.07777206,0.00030136,7]
[370303272,1751943047370,-460.0,0.00030136,7]
[370303273,1751943047379,-780.25,0.00030136,7]
[370303274,1751943047388,-460.0,0.00030136,7]
[370303275,1751943047398,-491.86287892,0.00030136,7]
[370303276,1751943047408,-460.0,0.00030136,7]
[370303277,1751943047418,-499.51164791,0.00030136,7]
[370303278,1751943047427,-495.90969046,0.00030136,7]
[370303279,1751943047437,-460.0,0.00030136,7]
[370303280,1751943047447,-1445.3,0.00030136,7]
[370303281,1751943047457,-492.51123695,0.00030136,7]
[370303282,1751943047467,-491.75086344,0.00030136,7]
[370303283,1751943047477,-740.75,0.00030136,7]
[370303284,1751943047486,-494.09080489,0.00030136,7]
[370303285,1751943047496,-490.0,0.00030136,7]
[370303286,1751943047506,-460.0,0.00030136,7]
[370303287,1751943047516,-1138.5,0.00030136,7]
[370303288,1751943047525,-267.88139697,0.00030136,7]
[370303289,1751943047535,-499.30602633,0.00030136,7]
[370303290,1751943047544,-468.7,0.00030136,7]
[370303291,1751943047553,-490.0,0.00030136,7]
[370303292,1751943047563,-460.0,0.00030136,7]
[370303293,1751943047573,-460.0,0.00030136,7]
[370303294,1751943047582,-460.0,0.00030136,7]
[370303295,1751943047591,-576.76672644,0.00030136,7]
[370303296,1751943047601,-460.0,0.00030136,7]
[370303297,1751943047610,-490.0,0.00030136,7]
[370303298,1751943047619,-300.0,0.00030136,2]
[370303299,1751943047629,-492.60175647,0.00030136,7]
[370303300,1751943047638,-479.31,0.00030136,7]
[370303301,1751943047647,-460.0,0.00030136,7]
[370303302,1751943047657,-460.0,0.00030136,7]
[370303303,1751943047666,-460.0,0.00030136,7]
[370303304,1751943047675,-490.0,0.00030136,7]
[370303305,1751943047685,-460.0,0.00030136,7]
[370303306,1751943047695,-460.0,0.00030136,7]
[370303307,1751943047705,-460.0,0.00030136,7]
[370303308,1751943047714,-460.0,0.00030136,7]
[370303309,1751943047723,-538.64,0.00030136,7]
[370303310,1751943047732,-490.0,0.00030136,7]
[370303311,1751943047742,-494.11701711,0.00030136,7]
[370303312,1751943047751,-490.0,0.00030136,7]
[370303313,1751943047761,-492.03257762,0.00030136,7]
[370303314,1751943047771,-490.0,0.00030136,7]
[370303315,1751943047787,-704.14,0.00030136,7]
[370303316,1751943047797,-493.13545989,0.00030136,7]
[370303317,1751943047806,-460.0,0.00030136,7]
[370303318,1751943047815,-495.03711178,0.00030136,7]
[370303319,1751943047824,-460.0,0.00030136,7]
[370303320,1751943047835,-460.0,0.00030136,7]
[370303321,1751943047845,-490.0,0.00030136,7]
[370303322,1751943047855,-528.94,0.00030136,7]
[370303323,1751943047864,-460.0,0.00030136,7]
[370303324,1751943047873,-460.0,0.00030136,7]
[370303325,1751943047882,-495.7687878,0.00030136,7]
[370303326,1751943047892,-2463.83,0.00030136,7]
[370303327,1751943047902,-460.0,0.00030136,7]
[370303328,1751943047911,-460.0,0.00030136,7]
[370303329,1751943047920,-938.91,0.00030136,7]
[370303330,1751943047929,-460.0,0.00030136,7]
[370303331,1751943047939,-460.0,0.00030136,7]
[370303332,1751943047948,-1348.58,0.00030136,7]
[370303333,1751943047958,-1125.85,0.00030136,7]